[Event "XXIX Cracovia 2018"]
[Site "Krakow"]
[Date "2018.12.27"]
[Round "1"]
[White "Jarmula, Lukasz"]
[Black "Kasperek, Ryszard"]
[Result "1-0"]
[ECO "E21"]
[WhiteElo "2481"]
[BlackElo "2212"]
[Annotator "ChessBase"]
[PlyCount "41"]
[EventDate "2018.12.27"]
[EventType "swiss"]
[EventCountry "POL"]
[SourceTitle "playchess.com"]
[Source "ChessBase"]
[SourceQuality "1"]
[TimeControl "40/5400+30:1800+30"]

1. d4 {[%emt 0:00:00]} Nf6 {[%emt 0:00:00]} 2. c4 {[%emt 0:00:00]} e6 {[%emt 0:00:09]} 3. Nc3 {[%emt 0:00:00]} Bb4 {[%emt 0:01:04]} 4. Nf3 {[%emt 0:00:00]} b6 {[%emt 0:02:03]} 5. Bd2 {[%emt 0:00:27]} Bb7 {[%emt 0:09:39]} 6. e3 {[%emt 0:00:39]} O-O {[%emt 0:00:22]} 7. Bd3 {[%emt 0:00:05]} d5 {[%emt 0:01:58]} 8. cxd5 {[%emt 0:00:08]} exd5 {[%emt 0:00:21]} 9. Rc1 {[%emt 0:00:21]} Re8 {[%emt 0:06:17]} 10. O-O {[%emt 0:01:54]} a6 {[%emt 0:03:41]} 11. Ne5 {[%emt 0:01:34]} Bd6 {[%emt 0:06:09]} 12. f4 {[%emt 0:01:41]} c5 {[%emt 0:00:06]} 13. Be1 {[%emt 0:04:27]} Ne4 {[%emt 0:29:34]} 14. Nxe4 {[%emt 0:08:23]} dxe4 {[%emt 0:00:05]} 15. Nxf7 {[%emt 0:01:43]} Kxf7 {[%emt 0:00:33]} 16. Bc4+ {[%emt 0:00:22]} Kf8 {[%emt 0:00:04]} 17. Qh5 {[%emt 0:00:55]} Qf6 {[%emt 0:00:35]} 18. Qxh7 {[%emt 0:00:24]} b5 {[%emt 0:06:47]} 19. Bh4 {[%emt 0:03:02]} Qxh4 {[%emt 0:00:03]} 20. Qxh4 {[%emt 0:02:47]} bxc4 {[%emt 0:00:05]} 21. f5 {[%emt 0:01:14]} 1-0

[Event "XXIX Cracovia 2018"]
[Site "Krakow"]
[Date "2018.12.27"]
[Round "1"]
[White "Janik, Igor"]
[Black "Wojciechowski, Piotr"]
[Result "1-0"]
[ECO "A40"]
[WhiteElo "2476"]
[BlackElo "2210"]
[Annotator "ChessBase"]
[PlyCount "81"]
[EventDate "2018.12.27"]
[EventType "swiss"]
[EventCountry "POL"]
[SourceTitle "playchess.com"]
[Source "ChessBase"]
[SourceQuality "1"]
[TimeControl "40/5400+30:1800+30"]

1. d4 {[%emt 0:00:00]} Nf6 {[%emt 0:03:13]} 2. c4 {[%emt 0:00:00]} e6 {[%emt 0:00:15]} 3. g3 {[%emt 0:00:00]} c5 {[%emt 0:00:04]} 4. d5 {[%emt 0:00:05]} b5 {[%emt 0:00:18]} 5. dxe6 {[%emt 0:00:17]} fxe6 {[%emt 0:00:20]} 6. Bg2 {[%emt 0:00:09]} d5 {[%emt 0:00:24]} 7. cxd5 {[%emt 0:00:31]} Bb7 {[%emt 0:02:15]} 8. Bg5 {[%emt 0:04:35]} Nbd7 {[%emt 0:05:11]} 9. Nc3 {[%emt 0:04:33]} b4 {[%emt 0:07:24]} 10. Ne4 {[%emt 0:00:20]} Bxd5 {[%emt 0:03:36]} 11. Nxf6+ {[%emt 0:01:57]} Nxf6 {[%emt 0:00:27]} 12. Bxf6 {[%emt 0:00:20]} gxf6 {[%emt 0:00:28]} 13. e4 {[%emt 0:00:36]} Bb7 {[%emt 0:02:37]} 14. Qh5+ {[%emt 0:00:10]} Ke7 {[%emt 0:00:05]} 15. Qxc5+ {[%emt 0:00:20]} Kf7 {[%emt 0:00:04]} 16. Qh5+ {[%emt 0:00:29]} Kg7 {[%emt 0:00:53]} 17. Rd1 {[%emt 0:05:01]} Qc8 {[%emt 0:02:32]} 18. Ne2 {[%emt 0:00:29]} b3 {[%emt 0:01:19]} 19. a3 {[%emt 0:03:44]} Be7 {[%emt 0:06:43]} 20. O-O {[%emt 0:00:42]} Rd8 {[%emt 0:00:12]} 21. Nf4 {[%emt 0:02:27]} Ba6 {[%emt 0:07:23]} 22. Bh3 {[%emt 0:01:28]} Bxf1 {[%emt 0:01:46]} 23. Nxe6+ {[%emt 0:00:05]} Qxe6 {[%emt 0:01:33]} 24. Bxe6 {[%emt 0:00:06]} Rxd1 {[%emt 0:00:06]} 25. Qxd1 {[%emt 0:00:05]} Bb5 {[%emt 0:00:04]} 26. Qxb3 {[%emt 0:00:41]} a6 {[%emt 0:00:56]} 27. a4 {[%emt 0:00:16]} Bc6 {[%emt 0:00:36]} 28. Qc4 {[%emt 0:00:42]} Be8 {[%emt 0:00:16]} 29. Bd5 {[%emt 0:00:29]} Ra7 {[%emt 0:02:03]} 30. Qc8 {[%emt 0:00:02]} Bxa4 {[%emt 0:02:23]} 31. Qg4+ {[%emt 0:00:31]} Kh6 {[%emt 0:00:11]} 32. e5 {[%emt 0:00:08]} Rd7 {[%emt 0:03:19]} 33. exf6 {[%emt 0:03:06]} Bxf6 {[%emt 0:00:34]} 34. Qxa4 {[%emt 0:00:11]} Rxd5 {[%emt 0:00:13]} 35. Qxa6 {[%emt 0:00:07]} Rd1+ {[%emt 0:01:42]} 36. Kg2 {[%emt 0:00:19]} Kg7 {[%emt 0:00:35]} 37. Qb7+ {[%emt 0:00:09]} Kf8 {[%emt 0:04:36]} 38. Qxh7 {[%emt 0:00:12]} Bg7 {[%emt 0:01:47]} 39. Qf5+ {[%emt 0:00:11]} Kg8 {[%emt 0:00:03]} 40. Qc8+ {[%emt 0:00:00]} Bf8 {[%emt 0:00:00]} 41. Qg4+ {[%emt 0:00:12]} 1-0

[Event "XXIX Cracovia 2018"]
[Site "Krakow"]
[Date "2018.12.27"]
[Round "1"]
[White "Gumularz, Szymon"]
[Black "Kumala, Aleksander"]
[Result "1-0"]
[ECO "C03"]
[WhiteElo "2462"]
[BlackElo "2198"]
[Annotator "ChessBase"]
[PlyCount "57"]
[EventDate "2018.12.27"]
[EventType "swiss"]
[EventCountry "POL"]
[SourceTitle "playchess.com"]
[Source "ChessBase"]
[SourceQuality "1"]
[TimeControl "40/5400+30:1800+30"]

1. e4 {[%emt 0:00:00]} e6 {[%emt 0:00:00]} 2. d4 {[%emt 0:00:00]} d5 {[%emt 0:00:00]} 3. Nd2 {[%emt 0:00:36]} a6 {[%emt 0:00:00]} 4. Ngf3 {[%emt 0:01:18]} Nf6 {[%emt 0:00:00]} 5. e5 {[%emt 0:00:05]} Nfd7 {[%emt 0:00:00]} 6. c3 {[%emt 0:00:10]} c5 {[%emt 0:00:07]} 7. Bd3 {[%emt 0:00:05]} Nc6 {[%emt 0:00:05]} 8. O-O {[%emt 0:02:01]} g5 {[%emt 0:00:13]} 9. Nb3 {[%emt 0:04:39]} h6 {[%emt 0:02:28]} 10. Nxc5 {[%emt 0:04:06]} Nxc5 {[%emt 0:00:32]} 11. dxc5 {[%emt 0:00:03]} g4 {[%emt 0:09:12]} 12. Nd4 {[%emt 0:01:06]} Nxe5 {[%emt 0:00:26]} 13. b4 {[%emt 0:05:35]} Nxd3 {[%emt 0:08:19]} 14. Qxd3 {[%emt 0:00:06]} Bg7 {[%emt 0:00:37]} 15. f3 {[%emt 0:01:23]} h5 {[%emt 0:06:44]} 16. Bf4 {[%emt 0:00:53]} Bd7 {[%emt 0:03:48]} 17. Rae1 {[%emt 0:02:10]} Bb5 {[%emt 0:06:11]} 18. Rxe6+ {[%emt 0:02:01]} Kf8 {[%emt 0:00:09]} 19. Nxb5 {[%emt 0:00:24]} axb5 {[%emt 0:01:17]} 20. fxg4 {[%emt 0:04:12]} Rxa2 {[%emt 0:02:25]} 21. Bd6+ {[%emt 0:01:23]} Kg8 {[%emt 0:00:09]} 22. Re7 {[%emt 0:00:29]} d4 {[%emt 0:04:02]} 23. Rfxf7 {[%emt 0:02:06]} Ra1+ {[%emt 0:00:22]} 24. Kf2 {[%emt 0:00:11]} Ra2+ {[%emt 0:00:43]} 25. Kg3 {[%emt 0:00:10]} Rh7 {[%emt 0:01:29]} 26. Qxh7+ {[%emt 0:00:17]} Kxh7 {[%emt 0:00:06]} 27. Rxg7+ {[%emt 0:00:01]} Kh8 {[%emt 0:00:07]} 28. Rh7+ {[%emt 0:00:02]} Kg8 {[%emt 0:00:05]} 29. Reg7# {[%emt 0:00:03]} 1-0

[Event "XXIX Cracovia 2018"]
[Site "Krakow"]
[Date "2018.12.27"]
[Round "1"]
[White "Kosakowski, Jakub"]
[Black "Zherebtsova, Alexandra"]
[Result "1-0"]
[ECO "C55"]
[WhiteElo "2415"]
[BlackElo "2186"]
[Annotator "NA"]
[PlyCount "73"]
[EventDate "2018.12.27"]
[EventType "swiss"]
[EventCountry "POL"]
[SourceTitle "playchess.com"]
[Source "ChessBase"]
[SourceQuality "1"]
[TimeControl "40/5400+30:1800+30"]

1. e4 {[%emt 0:00:00]} e5 {[%emt 0:05:21]} 2. Nf3 {[%emt 0:00:00]} Nc6 {[%emt 0:00:04]} 3. Bc4 {[%emt 0:00:00]} Nf6 {[%emt 0:00:53]} 4. d3 {[%emt 0:00:03]} h6 {[%emt 0:00:11]} 5. O-O {[%emt 0:00:42]} d6 {[%emt 0:00:31]} 6. c3 {[%emt 0:04:10]} g5 {[%emt 0:04:41]} 7. Re1 {[%emt 0:02:39]} Bg7 {[%emt 0:11:46]} 8. a4 {[%emt 0:08:44]} O-O {[%emt 0:05:19]} 9. Na3 {[%emt 0:10:15]} Ne7 {[%emt 0:02:26]} 10. Nc2 {[%emt 0:01:41]} c6 {[%emt 0:05:20]} 11. Ba2 {[%emt 0:00:20]} Ng6 {[%emt 0:06:38]} 12. Ne3 {[%emt 0:14:09]} Re8 {[%emt 0:17:15]} 13. Nd2 {[%emt 0:04:09]} d5 {[%emt 0:05:18]} 14. Qc2 {[%emt 0:06:46]} Ne7 {[%emt 0:11:43]} 15. Ndf1 {[%emt 0:03:45]} Nh5 {[%emt 0:02:56]} 16. Qd1 {[%emt 0:07:39]} Nf4 {[%emt 0:05:16]} 17. g3 {[%emt 0:02:12]} Nh3+ {[%emt 0:00:14]} 18. Kg2 {[%emt 0:00:08]} dxe4 {[%emt 0:00:19]} 19. dxe4 {[%emt 0:07:32]} g4 {[%emt 0:06:16]} 20. Nc4 {[%emt 0:05:51]} Qc7 {[%emt 0:02:16]} 21. Qd6 {[%emt 0:01:13]} Qxd6 {[%emt 0:01:50]} 22. Nxd6 {[%emt 0:00:07]} Rf8 {[%emt 0:00:06]} 23. Be3 {[%emt 0:01:08]} b6 {[%emt 0:00:43]} 24. Nxc8 {[%emt 0:00:36]} Raxc8 {[%emt 0:00:47]} 25. Red1 {[%emt 0:01:57]} Rc7 {[%emt 0:00:33]} 26. f3 {[%emt 0:02:00]} h5 {[%emt 0:00:04]} 27. fxg4 {[%emt 0:00:47]} hxg4 {[%emt 0:00:01]} 28. Bc4 {[%emt 0:00:41]} Kh8 {[%emt 0:00:34]} 29. Be2 {[%emt 0:03:07]} f5 {[%emt 0:00:03]} 30. exf5 {[%emt 0:00:17]} Nxf5 {[%emt 0:00:09]} 31. Bxg4 {[%emt 0:00:26]} Nxe3+ {[%emt 0:00:52]} 32. Nxe3 {[%emt 0:00:06]} Ng5 {[%emt 0:00:26]} 33. Bf5 {[%emt 0:01:34]} e4 {[%emt 0:00:21]} 34. h4 {[%emt 0:00:26]} Nf3 {[%emt 0:00:20]} 35. Rd6 {[%emt 0:04:28]} Rcf7 {[%emt 0:02:20]} 36. Bg6 {[%emt 0:03:15]} Re7 {[%emt 0:00:12]} 37. Rf1 {[%emt 0:00:25]} 1-0

[Event "XXIX Cracovia 2018"]
[Site "Krakow"]
[Date "2018.12.27"]
[Round "1"]
[White "Hnydiuk, Aleksander"]
[Black "Boino, Claudio"]
[Result "1-0"]
[ECO "E06"]
[WhiteElo "2409"]
[BlackElo "2180"]
[Annotator "NA"]
[PlyCount "83"]
[EventDate "2018.12.27"]
[EventType "swiss"]
[EventCountry "POL"]
[SourceTitle "playchess.com"]
[Source "ChessBase"]
[SourceQuality "1"]
[TimeControl "40/5400+30:1800+30"]

1. Nf3 {[%emt 0:01:18]} d5 {[%emt 0:00:00]} 2. d4 {[%emt 0:00:13]} Nf6 {[%emt 0:00:00]} 3. c4 {[%emt 0:00:17]} e6 {[%emt 0:00:00]} 4. g3 {[%emt 0:00:20]} Be7 {[%emt 0:00:01]} 5. Bg2 {[%emt 0:00:05]} O-O {[%emt 0:00:08]} 6. O-O {[%emt 0:00:22]} dxc4 {[%emt 0:00:07]} 7. Qc2 {[%emt 0:00:20]} a6 {[%emt 0:00:07]} 8. Qxc4 {[%emt 0:00:16]} b5 {[%emt 0:00:06]} 9. Qc2 {[%emt 0:00:06]} Bb7 {[%emt 0:00:12]} 10. Bd2 {[%emt 0:00:25]} Ra7 {[%emt 0:00:08]} 11. Rc1 {[%emt 0:00:28]} Be4 {[%emt 0:00:37]} 12. Qb3 {[%emt 0:00:23]} Nc6 {[%emt 0:02:28]} 13. e3 {[%emt 0:00:08]} Qa8 {[%emt 0:07:41]} 14. Qd1 {[%emt 0:00:07]} b4 {[%emt 0:02:49]} 15. Qf1 {[%emt 0:36:28]} Rc8 {[%emt 0:25:40]} 16. Be1 {[%emt 0:00:34]} Na5 {[%emt 0:07:26]} 17. Nbd2 {[%emt 0:08:50]} Bc6 {[%emt 0:01:14]} 18. Ne5 {[%emt 0:02:26]} Bxg2 {[%emt 0:03:10]} 19. Qxg2 {[%emt 0:00:03]} Qxg2+ {[%emt 0:01:00]} 20. Kxg2 {[%emt 0:00:02]} c5 {[%emt 0:00:56]} 21. dxc5 {[%emt 0:32:45]} Nc6 {[%emt 0:23:53]} 22. Nxc6 {[%emt 0:03:46]} Rxc6 {[%emt 0:00:06]} 23. Nb3 {[%emt 0:01:08]} a5 {[%emt 0:00:15]} 24. Nd4 {[%emt 0:07:05]} Rxc5 {[%emt 0:00:33]} 25. Nc6 {[%emt 0:00:27]} Rxc1 {[%emt 0:04:51]} 26. Rxc1 {[%emt 0:00:07]} Rc7 {[%emt 0:00:46]} 27. Nxe7+ {[%emt 0:00:19]} Rxe7 {[%emt 0:00:07]} 28. Rc5 {[%emt 0:00:03]} h6 {[%emt 0:02:36]} 29. Rxa5 {[%emt 0:00:05]} Rb7 {[%emt 0:00:05]} 30. b3 {[%emt 0:02:22]} g5 {[%emt 0:05:57]} 31. Ra4 {[%emt 0:00:20]} Nd5 {[%emt 0:00:22]} 32. e4 {[%emt 0:00:21]} Nf6 {[%emt 0:03:27]} 33. Rxb4 {[%emt 0:00:11]} Ra7 {[%emt 0:01:05]} 34. a4 {[%emt 0:00:45]} h5 {[%emt 0:00:12]} 35. Bc3 {[%emt 0:00:36]} Nd7 {[%emt 0:00:13]} 36. Bd4 {[%emt 0:00:26]} Ra6 {[%emt 0:00:28]} 37. Rb5 {[%emt 0:01:28]} f6 {[%emt 0:00:19]} 38. a5 {[%emt 0:00:55]} e5 {[%emt 0:00:18]} 39. Be3 {[%emt 0:00:19]} Kf7 {[%emt 0:00:19]} 40. b4 {[%emt 0:00:00]} g4 {[%emt 0:00:00]} 41. Rd5 {[%emt 0:02:45]} Ke6 {[%emt 0:00:49]} 42. Rd2 {[%emt 0:00:39]} 1-0

[Event "XXIX Cracovia 2018"]
[Site "Krakow"]
[Date "2018.12.27"]
[Round "1"]
[White "Molenda, Marcin"]
[Black "Kucharska, Honorata"]
[Result "1-0"]
[ECO "A53"]
[WhiteElo "2383"]
[BlackElo "2177"]
[Annotator "NA"]
[PlyCount "117"]
[EventDate "2018.12.27"]
[EventType "swiss"]
[EventCountry "POL"]
[SourceTitle "playchess.com"]
[Source "ChessBase"]
[SourceQuality "1"]
[TimeControl "40/5400+30:1800+30"]

1. d4 Nf6 2. c4 d6 3. Nf3 Nbd7 4. g3 e5 5. Bg2 Be7 6. O-O O-O 7. Nc3 c6 8. h3 Re8 9. e4 Qc7 10. Be3 Bf8 11. Re1 b6 12. Rc1 Bb7 13. Qd2 Rad8 14. Bg5 Be7 15. Kh2 Nf8 16. d5 c5 17. Nh4 Bc8 18. Nf5 Bxf5 19. exf5 Qd7 20. g4 h6 21. Be3 N8h7 22. f3 Kh8 23. Bf1 Ng8 24. Ne4 Bh4 25. Red1 Ngf6 26. Bd3 Nxe4 27. Bxe4 Qe7 28. a3 Rc8 29. b4 Bg5 30. Bxg5 Nxg5 31. Kg3 Rc7 32. b5 a5 33. h4 Nxe4+ 34. fxe4 f6 35. Rh1 Rg8 36. Kf2 Kh7 37. Rcg1 g6 38. Qe3 Qf8 39. Qf3 g5 40. hxg5 Rxg5 41. Rh4 Kg8 42. Rgh1 Rh7 43. R1h3 Qg7 44. Qh1 Rh8 45. Qh2 Rh7 46. Kf3 Rh8 47. Rxh6 Rxh6 48. Rxh6 Rxg4 49. Rxf6 Qxf6 50. Kxg4 Qg7+ 51. Kf3 Kf8 52. Qh4 Kf7 53. Qh5+ Kf8 54. Qh4 Kf7 55. Qd8 Qg1 56. Qd7+ Kg8 57. Qe8+ Kh7 58. Qh5+ Kg7 59. Qg4+ 1-0

[Event "XXIX Cracovia 2018"]
[Site "Krakow"]
[Date "2018.12.27"]
[Round "1"]
[White "Biriukov, Nikolai"]
[Black "Brozyna, Mateusz"]
[Result "1-0"]
[ECO "E62"]
[WhiteElo "2365"]
[BlackElo "2173"]
[Annotator "NA"]
[PlyCount "75"]
[EventDate "2018.12.27"]
[EventType "swiss"]
[EventCountry "POL"]
[SourceTitle "playchess.com"]
[Source "ChessBase"]
[SourceQuality "1"]
[TimeControl "40/5400+30:1800+30"]

1. d4 {[%emt 0:00:00]} Nf6 {[%emt 0:00:00]} 2. c4 {[%emt 0:00:00]} g6 {[%emt 0:00:00]} 3. g3 {[%emt 0:00:20]} Bg7 {[%emt 0:00:00]} 4. Bg2 {[%emt 0:00:04]} O-O {[%emt 0:00:06]} 5. Nc3 {[%emt 0:00:03]} d6 {[%emt 0:00:08]} 6. Nf3 {[%emt 0:00:18]} Nc6 {[%emt 0:00:07]} 7. O-O {[%emt 0:00:05]} Bf5 {[%emt 0:00:05]} 8. d5 {[%emt 0:01:35]} Na5 {[%emt 0:00:07]} 9. Nd2 {[%emt 0:00:05]} c5 {[%emt 0:00:07]} 10. e4 {[%emt 0:00:18]} Bd7 {[%emt 0:00:07]} 11. Qc2 {[%emt 0:06:33]} a6 {[%emt 0:00:20]} 12. b3 {[%emt 0:06:09]} b5 {[%emt 0:00:09]} 13. Rb1 {[%emt 0:00:02]} Rb8 {[%emt 0:00:12]} 14. h3 {[%emt 0:05:38]} e5 {[%emt 0:02:22]} 15. cxb5 {[%emt 0:08:38]} axb5 {[%emt 0:03:29]} 16. b4 {[%emt 0:00:04]} cxb4 {[%emt 0:07:37]} 17. Rxb4 {[%emt 0:00:02]} Qc8 {[%emt 0:00:27]} 18. Qb2 {[%emt 0:01:59]} Bxh3 {[%emt 0:09:50]} 19. Nxb5 {[%emt 0:03:13]} Bxg2 {[%emt 0:02:35]} 20. Kxg2 {[%emt 0:00:05]} Qc5 {[%emt 0:12:51]} 21. a3 {[%emt 0:06:37]} Rfc8 {[%emt 0:06:38]} 22. Nc3 {[%emt 0:10:51]} Qc7 {[%emt 0:10:52]} 23. Nb5 {[%emt 0:15:30]} Qc5 {[%emt 0:02:16]} 24. Nc3 {[%emt 0:13:29]} Qc7 {[%emt 0:00:42]} 25. Ndb1 {[%emt 0:04:34]} Nc4 {[%emt 0:14:15]} 26. Qb3 {[%emt 0:01:19]} Nd7 {[%emt 0:04:05]} 27. Nb5 {[%emt 0:00:53]} Qc5 {[%emt 0:05:33]} 28. N1c3 {[%emt 0:02:37]} Ndb6 {[%emt 0:04:07]} 29. Na7 {[%emt 0:03:35]} Na5 {[%emt 0:10:11]} 30. Qb1 {[%emt 0:00:19]} Nac4 {[%emt 0:04:21]} 31. Na4 {[%emt 0:02:45]} Nxa4 {[%emt 0:00:57]} 32. Rxb8 {[%emt 0:00:07]} Rf8 {[%emt 0:00:53]} 33. Rxf8+ {[%emt 0:00:58]} Bxf8 {[%emt 0:00:02]} 34. Qb8 {[%emt 0:00:13]} Nab6 {[%emt 0:00:48]} 35. Nc6 {[%emt 0:00:56]} Nd7 {[%emt 0:00:34]} 36. Qd8 {[%emt 0:00:20]} Ncb6 {[%emt 0:00:34]} 37. Bh6 {[%emt 0:00:44]} f5 {[%emt 0:00:13]} 38. Qe8 {[%emt 0:01:35]} 1-0

[Event "XXIX Cracovia 2018"]
[Site "Krakow"]
[Date "2018.12.27"]
[Round "1"]
[White "Nurkiewicz, Maciej"]
[Black "Strybuk, Artsiom I"]
[Result "0-1"]
[ECO "B76"]
[WhiteElo "2359"]
[BlackElo "2172"]
[Annotator "NA"]
[PlyCount "94"]
[EventDate "2018.12.27"]
[EventType "swiss"]
[EventCountry "POL"]
[SourceTitle "playchess.com"]
[Source "ChessBase"]
[SourceQuality "1"]
[TimeControl "40/5400+30:1800+30"]

1. e4 {[%emt 0:00:00]} c5 {[%emt 0:00:05]} 2. Nf3 {[%emt 0:01:22]} d6 {[%emt 0:00:58]} 3. d4 {[%emt 0:00:06]} cxd4 {[%emt 0:00:10]} 4. Nxd4 {[%emt 0:00:03]} Nf6 {[%emt 0:00:14]} 5. Nc3 {[%emt 0:00:04]} g6 {[%emt 0:01:53]} 6. Be3 {[%emt 0:00:45]} Bg7 {[%emt 0:00:23]} 7. f3 {[%emt 0:00:15]} Nc6 {[%emt 0:00:18]} 8. Qd2 {[%emt 0:00:20]} O-O {[%emt 0:00:55]} 9. O-O-O {[%emt 0:00:15]} d5 {[%emt 0:00:22]} 10. Kb1 {[%emt 0:00:54]} Nxd4 {[%emt 0:12:52]} 11. e5 {[%emt 0:01:44]} Nf5 {[%emt 0:15:54]} 12. exf6 {[%emt 0:01:10]} exf6 {[%emt 0:00:56]} 13. Bc5 {[%emt 0:03:24]} d4 {[%emt 0:06:50]} 14. Bxf8 {[%emt 0:00:30]} Qxf8 {[%emt 0:00:41]} 15. Ne2 {[%emt 0:04:04]} Bh6 {[%emt 0:27:14]} 16. f4 {[%emt 0:02:00]} Be6 {[%emt 0:04:10]} 17. g3 {[%emt 0:19:40]} Ne3 {[%emt 0:08:59]} 18. Rc1 {[%emt 0:01:55]} Nc4 {[%emt 0:00:10]} 19. Qxd4 {[%emt 0:21:19]} f5 {[%emt 0:05:19]} 20. Qc3 {[%emt 0:00:09]} Bd5 {[%emt 0:02:34]} 21. Rg1 {[%emt 0:08:52]} Bg7 {[%emt 0:00:11]} 22. Nd4 {[%emt 0:00:39]} Rc8 {[%emt 0:02:05]} 23. Rd1 {[%emt 0:05:53]} b5 {[%emt 0:01:38]} 24. Bxc4 {[%emt 0:09:57]} Rxc4 {[%emt 0:01:46]} 25. Qe3 {[%emt 0:00:13]} Be4 {[%emt 0:01:07]} 26. Ka1 {[%emt 0:07:49]} Qc5 {[%emt 0:01:22]} 27. Nxf5 {[%emt 0:05:04]} Bxf5 {[%emt 0:01:39]} 28. Rd8+ {[%emt 0:00:41]} Bf8 {[%emt 0:00:30]} 29. Qxc5 {[%emt 0:02:22]} Rxc5 {[%emt 0:00:01]} 30. c3 {[%emt 0:01:06]} h5 {[%emt 0:01:18]} 31. Re1 {[%emt 0:01:40]} Be6 {[%emt 0:01:20]} 32. Re5 {[%emt 0:00:34]} Kg7 {[%emt 0:00:38]} 33. Rb8 {[%emt 0:00:46]} Rc7 {[%emt 0:01:25]} 34. Rbxb5 {[%emt 0:00:50]} Rd7 {[%emt 0:00:09]} 35. Re1 {[%emt 0:00:21]} Rd2 {[%emt 0:00:31]} 36. a4 {[%emt 0:00:31]} Rxh2 {[%emt 0:00:12]} 37. Rb7 {[%emt 0:00:04]} Kf6 {[%emt 0:00:35]} 38. Rxa7 {[%emt 0:00:38]} Bc5 {[%emt 0:00:21]} 39. Rb7 {[%emt 0:00:56]} Bf2 {[%emt 0:00:36]} 40. Rd1 {[%emt 0:00:00]} Bxg3 {[%emt 0:00:00]} 41. a5 {[%emt 0:01:31]} Rf2 {[%emt 0:09:34]} 42. a6 {[%emt 0:10:42]} Rxf4 {[%emt 0:01:25]} 43. Rb4 {[%emt 0:00:28]} Rxb4 {[%emt 0:09:08]} 44. cxb4 {[%emt 0:00:02]} Bb8 {[%emt 0:00:11]} 45. Rd8 {[%emt 0:00:06]} Ba7 {[%emt 0:00:45]} 46. Ra8 {[%emt 0:00:02]} Bf2 {[%emt 0:01:56]} 47. a7 {[%emt 0:05:57]} Bxa7 0-1

[Event "XXIX Cracovia 2018"]
[Site "Krakow"]
[Date "2018.12.27"]
[Round "1"]
[White "Mosesov, Danylo"]
[Black "Kubicka, Anna"]
[Result "0-1"]
[ECO "B94"]
[WhiteElo "2343"]
[BlackElo "2168"]
[Annotator "NA"]
[PlyCount "118"]
[EventDate "2018.12.27"]
[EventType "swiss"]
[EventCountry "POL"]
[SourceTitle "playchess.com"]
[Source "ChessBase"]
[SourceQuality "1"]
[TimeControl "40/5400+30:1800+30"]

1. e4 {[%emt 0:00:00]} c5 {[%emt 0:00:09]} 2. Nf3 {[%emt 0:00:00]} d6 {[%emt 0:00:07]} 3. d4 {[%emt 0:00:00]} cxd4 {[%emt 0:00:06]} 4. Nxd4 {[%emt 0:00:00]} Nf6 {[%emt 0:00:07]} 5. Nc3 {[%emt 0:00:00]} a6 {[%emt 0:00:05]} 6. Bg5 {[%emt 0:00:00]} Nbd7 {[%emt 0:00:08]} 7. f4 {[%emt 0:00:18]} Qc7 {[%emt 0:00:09]} 8. Qf3 {[%emt 0:01:01]} h6 {[%emt 0:00:07]} 9. Bh4 {[%emt 0:09:12]} g5 {[%emt 0:00:09]} 10. fxg5 {[%emt 0:03:38]} hxg5 {[%emt 0:01:00]} 11. Bxg5 {[%emt 0:11:16]} Qc5 {[%emt 0:01:44]} 12. Bxf6 {[%emt 0:00:30]} Nxf6 {[%emt 0:00:30]} 13. Nb3 {[%emt 0:07:24]} Qg5 {[%emt 0:21:29]} 14. Bc4 {[%emt 0:11:44]} Bg4 {[%emt 0:05:22]} 15. Qg3 {[%emt 0:00:30]} Rc8 {[%emt 0:00:30]} 16. Be2 {[%emt 0:23:09]} Rg8 {[%emt 0:11:31]} 17. Nd4 {[%emt 0:04:52]} Bh6 {[%emt 0:15:33]} 18. Rd1 {[%emt 0:00:30]} Rxc3 {[%emt 0:08:30]} 19. Qxc3 {[%emt 0:04:16]} Nxe4 {[%emt 0:00:48]} 20. Qc7 {[%emt 0:04:51]} Kf8 {[%emt 0:03:25]} 21. O-O {[%emt 0:01:53]} Bh3 {[%emt 0:16:37]} 22. Bf3 {[%emt 0:07:15]} Qxg2+ {[%emt 0:02:39]} 23. Bxg2 {[%emt 0:00:00]} Be3+ {[%emt 0:00:19]} 24. Rf2 {[%emt 0:00:01]} Rxg2+ {[%emt 0:00:35]} 25. Kf1 {[%emt 0:00:10]} Rxf2+ {[%emt 0:01:48]} 26. Ke1 {[%emt 0:05:35]} Rxh2 {[%emt 0:03:10]} 27. Qd8+ {[%emt 0:00:30]} Kg7 {[%emt 0:00:30]} 28. Qa5 {[%emt 0:00:35]} Bf2+ {[%emt 0:02:16]} 29. Ke2 {[%emt 0:00:01]} Bg4+ {[%emt 0:00:23]} 30. Kd3 {[%emt 0:00:12]} Nc5+ {[%emt 0:00:18]} 31. Kc4 {[%emt 0:00:26]} Bxd1 {[%emt 0:00:22]} 32. Qd2 {[%emt 0:01:17]} b5+ {[%emt 0:03:47]} 33. Kd5 Bh5 34. Qf4 {[%emt 0:03:20]} Bg6 {[%emt 0:01:29]} 35. Kc6 {[%emt 0:01:23]} Bxd4 {[%emt 0:00:55]} 36. Qxd4+ {[%emt 0:01:30]} Kf8 {[%emt 0:00:47]} 37. c3 {[%emt 0:00:32]} Rh5 {[%emt 0:00:17]} 38. Kb6 {[%emt 0:00:33]} Kg8 {[%emt 0:00:17]} 39. b4 {[%emt 0:00:19]} Ne6 {[%emt 0:00:11]} 40. Qe3 {[%emt 0:00:00]} Re5 {[%emt 0:00:00]} 41. Qg3 {[%emt 0:01:50]} Kg7 {[%emt 0:01:27]} 42. Qh4 {[%emt 0:01:03]} Ng5 {[%emt 0:02:05]} 43. Kxa6 {[%emt 0:00:56]} Ne4 {[%emt 0:00:05]} 44. Ka5 {[%emt 0:07:04]} Nxc3 {[%emt 0:02:01]} 45. Qd4 {[%emt 0:00:02]} Ne4 {[%emt 0:01:13]} 46. a4 {[%emt 0:00:44]} bxa4+ {[%emt 0:02:03]} 47. Kxa4 {[%emt 0:00:01]} f5 {[%emt 0:00:20]} 48. b5 {[%emt 0:00:28]} Be8 {[%emt 0:00:13]} 49. Qg1+ {[%emt 0:00:01]} Kf7 {[%emt 0:00:16]} 50. Qh2 {[%emt 0:00:16]} Bxb5+ {[%emt 0:00:15]} 51. Kb4 {[%emt 0:00:01]} Rc5 {[%emt 0:02:12]} 52. Qh7+ {[%emt 0:01:37]} Ke6 {[%emt 0:00:14]} 53. Ka5 {[%emt 0:00:33]} Kd7 {[%emt 0:00:25]} 54. Kb6 {[%emt 0:00:18]} Bd3 {[%emt 0:00:39]} 55. Qh3 {[%emt 0:01:01]} Rb5+ {[%emt 0:00:11]} 56. Ka7 {[%emt 0:00:05]} Nc5 {[%emt 0:00:12]} 57. Qh8 {[%emt 0:01:21]} Rb7+ {[%emt 0:00:29]} 58. Ka8 {[%emt 0:00:02]} Rc7 {[%emt 0:00:14]} 59. Qa1 {[%emt 0:07:09]} Be4+ {[%emt 0:00:09]} 0-1